Workbook

Sheet Read Me

Sheet Control
G3: Time Series of Output, Supply and Demand | N3: Time Series of Price, Marginal Cost, and | V3: Supply and Demand Schedules
G4: for Good #1 | N4: Marginal Values for Good #1 | V4: for Good #1
A26: SIMLEN: | B26: 300
A27: DT: | B27: 0.01
A28: PER: | B28: =B26/30 -> 10
A29: TIME: | B29: 300.0014954
G45: Time Series of Interest Rates | N45: Time Series of Wage and Marginal Values | V45: Time Series of Household Utility
G46: and the Currency Value | N46: for the Household Sector | V46: and Leisure

Sheet 1 DT
E4: < Temporal Parameters, i.e.: Turnover Fractions > | AF4: =-SUM(AF6:AF8) -> -12807.53486 | AG4: =-SUM(AG6:AG8) -> -25653.30997
R5: H | S5: 0 | T5: I | U5: L | AD5: U | AE5: 0 | AF5: I | AG5: L | AH5: t | AI5: Z | AK5: Z
R6: 0 | T6: =SIGN(AF18) -> 1 | U6: 0 | V6: 0 | AC6: Spatial Parameters, | AD6: 0 | AF6: 6903.132058 | AG6: 8766 | AH6: 0 | AI6: =W18+AI18 -> -305775.1124 | AK6: =Init!E34 -> -316172.5572 | AL6: 0
E7: i | G7: n | I7: V0 | Q7: =T6-S7 -> 3 | R7: I | S7: =-SUM(T7:U7) -> -2 | T7: 1 | U7: 1 | V7: I | W7: =1/(1-S7) -> 0.3333333333 | AC7: i.e.: production and | AD7: I | AF7: 5647.776528 | AG7: 27306.04545 | AH7: I | AI7: =AF6 -> 6903.132058 | AK7: =Init!F34 -> 6767.776528 | AL7: I
E8: =-E54 -> -0.107044679 | G8: =(1-1/NPV)/Term -> -0.1385078939 | I8: 1 | J8: 0.3333333333 | K8: 1 | M8: < V | Q8: =U8-S8 -> 0 | R8: L | S8: =-T8 -> -1 | T8: 1 | U8: -1 | V8: L | W8: =1/(1-S8) -> 0.5 | AC8: utility tradeoffs > | AD8: L | AF8: 256.6262718 | AG8: =Zl -> -10418.73548 | AH8: L | AI8: =K44 -> -10418.73548 | AJ8: ZL | AK8: =Init!G36 -> -10383.36116 | AL8: L
E9: =Init!M19 -> -0.1 | G9: =Init!O19 -> -0.1355310143 | I9: 0 | J9: I | K9: L | Q9: h | S9: - N | W9: 1/(N + 1)
C12: Contra- | E12: k | G12: g | AD12: __
C13: Accounts > | E13: =-E16-SUM(E18:E20) -> -82435.12671 | G13: =-G16-SUM(G18:G20) -> 63709.30513 | I13: =-I16-SUM(I18:I20) -> 7.275957614e-11 | J13: =-J16-SUM(J18:J20) -> 2.955857781e-12 | K13: =-K16-SUM(K18:K20) -> 2.728484105e-11 | M13: < Markets | Q13: =Iota*Kappa+Nu*Gamma -> 0 | S13: =V0*I13 -> 7.275957614e-11 | T13: =J8*J13 -> 9.852859269e-13 | U13: =K8*K13 -> 2.728484105e-11 | V13: < Market | AC13: =SUM(AC54:AC55) -> 1896981.919 | AD13: U | AE13: =SUM(S54:S55) -> -537488.7107 | AF13: =SUM(AF7:AF8) -> 5904.402799 | AG13: =AG7 -> 27306.04545
I14: 0 | J14: I | K14: L | S14: 0 | T14: I | U14: L | V14: Pressure | AE14: 0 | AF14: I | AG14: L
E16: 0 | G16: 0 | I16: =I23+I30+I37 -> 0 | J16: =J23+J30+J37 -> 0 | K16: =K23+K30+K37 -> 0 | Q16: =Iota*E16+Nu*G16 -> 0 | S16: =V0*I16 -> 0 | T16: =J$8*J16 -> 0 | U16: =K$8*K16 -> 0 | AC16: =AC51+Q16 -> -1896981.919 | AE16: =S51+S16 -> 843263.8231 | AF16: =AF4+T16 -> -12807.53486 | AG16: =AG4+U16 -> -25653.30997
I17: 0 | J17: I | K17: L | Q17: e | R17: E | S17: 0 | T17: I | U17: L | W17: Y | AC17: u + e | AD17: m | AE17: 0 | AF17: I | AG17: L | AI17: l | AK17: (u + e)/h
D18: 0 | F18: 0 | H18: 0 | I18: =I25+I32+I39 -> 59285.71429 | J18: -2611.886703 | K18: -8766 | L18: 0 | Q18: =Iota*E18+Nu*G18 -> 0 | R18: 0 | S18: =V0*I18 -> 59285.71429 | T18: =J$8*J18 -> -870.628901 | U18: -8766 | V18: 0 | W18: =S40 -> -59285.71429 | Y18: =-Init!E10 -> -59285.71429 | AC18: =AC53+Q18 -> 0 | AD18: 0 | AE18: =AI18 -> -246489.3981 | AF18: =AI19 -> 6032.503157 | AH18: 0 | AI18: =-T47*AI19-U47*AI20 -> -246489.3981 | AL18: 0
C19: Monetary | D19: I | E19: =E26 -> 82435.12671 | F19: I | H19: I | I19: -36644.81954 | J19: 1154.179889 | K19: 1948.097467 | L19: I | M19: < Physical | O19: Dividends > | Q19: =Iota*E19+Nu*G19 -> -8824.241673 | R19: I | S19: =V0*I19 -> -36644.81954 | T19: 384.7266295 | U19: 1948.097467 | V19: I | W19: =AI7-AI19 -> 870.628901 | X19: < Production | AA19: U + E | AB19: > | AC19: =AC54+Q19 -> 1896981.919 | AD19: I | AE19: =S54+S19 -> -562175.882 | AF19: =AF7+T19 -> 6032.503157 | AG19: =AG7+U19 -> 29254.14291 | AH19: I | AI19: =AI7*W26 -> 6032.503157 | AK19: =AC19/Q7 -> 632327.3064 | AL19: I
C20: Stocks > | D20: L | F20: L | G20: =G27+G34+G41 -> -63709.30513 | H20: L | I20: -22640.89475 | J20: 1457.706815 | K20: 6817.902533 | L20: L | M20: Stocks | Q20: =Iota*E20+Nu*G20 -> 8824.241673 | R20: L | S20: =V0*I20 -> -22640.89475 | T20: 485.9022715 | U20: 6817.902533 | V20: L | W20: =AI8-AI20 -> -6817.902533 | X20: < | Y20: YL = - Leisure | AC20: =AC55+Q20 -> 1.205989975e-09 | AD20: L | AE20: =S55+S20 -> -34598.54292 | AF20: =AF8+T20 -> 742.5285433 | AG20: =AI20 -> -3600.832947 | AH20: L | AI20: =AI8*W27 -> -3600.832947 | AL20: L
E21: Investment | G21: Saving | S21: - s/P0
E23: 0 | G23: 0 | I23: 0 | J23: 0 | K23: 0 | T23: - Y/l
H24: A | I24: 0 | J24: I | K24: L | Q24: w | R24: W | S24: 0 | T24: I | U24: L | W24: l/Z | AC24: b = e/w | AE24: Q = E0/W0 | AI24: z = pl | AK24: q = P0*Q
D25: 0 | F25: 0 | H25: 0 | I25: 19761.90476 | J25: -870.628901 | K25: -2922 | L25: 0 | R25: 0 | S25: =-W18/AI18 -> -0.2405203418 | T25: =-W19/AI19 -> -0.1443229914 | V25: 0 | W25: =AI18/AI6 -> 0.8061133432 | AD25: 0 | AH25: 0 | AL25: 0
D26: I | E26: 82435.12671 | F26: I | H26: I | I26: -12214.93985 | J26: 384.7266295 | K26: 649.3658223 | L26: I | O26: E | P26: > | Q26: =T25-S26 -> -0.01395518046 | R26: I | S26: =-SUM(T26:U26) -> -0.1303678109 | T26: =T19/AF19 -> 0.06377562009 | U26: =U19/AG19 -> 0.06659219081 | V26: I | W26: =(1-T26)*(1-U26) -> 0.8738791474 | AC26: =Q19/Q26 -> 632327.3064 | AD26: I | AE26: =S19/S26 -> 281087.941 | AH26: I | AI26: =AI40*AI19 -> 632327.3064 | AK26: =P0*AE26 -> 632327.3064 | AL26: I
D27: L | F27: L | G27: -21236.43504 | H27: L | I27: -7546.964915 | J27: 485.9022715 | K27: 2272.634178 | L27: L | O27: U + E | Q27: =U27-S27 -> 0.1133756688 | R27: L | S27: =-T27 -> -0.6543886776 | T27: =T20/AF20 -> 0.6543886776 | U27: =(AG6+W20)/AI20 -> -0.5410130088 | V27: L | W27: =1-T27 -> 0.3456113224 | AC27: =Q20/Q27 -> 77831.88197 | AD27: L | AE27: =S20/S27 -> 34598.54292 | AH27: L | AI27: =AI41*AI20 -> 77831.88197 | AK27: =P0*AE27 -> 77831.88197 | AL27: L
U28: (t+Y) /l
I30: 0 | J30: 0 | K30: 0 | Q30: =Q32-S30 -> -843263.8231 | S30: =-SUM(T30:U30) -> 843263.8231 | T30: =-SUM(T32:T34) -> -596774.425 | U30: =-SUM(U32:U34) -> -246489.3981 | AC30: =AC32-AE30 -> -1896981.919 | AE30: =-SUM(AF30:AG30) -> 1896981.919 | AF30: =-SUM(AF32:AF34) -> -1342486.495 | AG30: =-SUM(AG32:AG34) -> -554495.4244
H31: B | I31: 0 | J31: I | K31: L | Q31: hQ | R31: HQ | S31: 0 | T31: I | U31: L | AC31: hb | AD31: Hb | AE31: 0 | AF31: I | AG31: L | AK31: (PU + s)/N
F32: 0 | H32: 0 | I32: 19761.90476 | J32: -870.628901 | K32: -2922 | L32: 0 | Q32: =S32-S32 -> 0 | R32: 0 | S32: =-S30-SUM(S33:S34) -> -246489.3981 | T32: =T6*AE26 -> 281087.941 | U32: =U6*AE27 -> 0 | V32: 0 | AC32: =AE32-AE32 -> 0 | AD32: 0 | AE32: =-AE30-SUM(AE33:AE34) -> -554495.4244 | AF32: =T6*AC26 -> 632327.3064 | AG32: =U6*AC27 -> 0 | AH32: 0 | AL32: 0
D33: System State | F33: I | H33: I | I33: -12214.93985 | J33: 384.7266295 | K33: 649.3658223 | L33: I | Q33: =Q7*$AE26 -> 843263.8231 | R33: I | S33: =S7*$AE26 -> -562175.882 | T33: 281087.941 | U33: 281087.941 | V33: I | AC33: =Q7*$AC26 -> 1896981.919 | AD33: I | AE33: =S7*$AC26 -> -1264654.613 | AF33: 632327.3064 | AG33: 632327.3064 | AH33: I | AK33: =(AE54+AE76)/S7 -> 632327.3064 | AL33: I
D34: at time = t > | F34: L | G34: -21236.43504 | H34: L | I34: -7546.964915 | J34: 485.9022715 | K34: 2272.634178 | L34: L | Q34: =Q8*$AE27 -> 0 | R34: L | S34: -34598.54292 | T34: 34598.54292 | U34: -34598.54292 | V34: L | AC34: =Q8*$AC27 -> 0 | AD34: L | AE34: -77831.88197 | AF34: 77831.88197 | AG34: -77831.88197 | AH34: L | AK34: =(AE55+AE77)/S8 -> 77831.88197 | AL34: L
R36: __ | AB36: Intersection of
I37: 0 | J37: 0 | K37: 0 | Q37: =SUM(Q33:Q34) -> 843263.8231 | R37: Q | S37: =SUM(S33:S34) -> -596774.425 | T37: =SUM(T33:T34) -> 315686.4839 | U37: =U33 -> 281087.941 | AB37: S/D Schedules > | AC37: =AC30/AC16 -> 1 | AE37: =AE30/AE16 -> 2.249571092 | AF37: =AF30/AF16 -> 104.820054 | AG37: =AG30/AG16 -> 21.61496607 | AL37: 1/(N+1)
H38: C | I38: 0 | J38: I | K38: L | S38: 0 | T38: I | U38: L | AD38: c Hb/m | AE38: 0 | AF38: I | AG38: L | AI38: p | AK38: (pZPU)
F39: 0 | H39: 0 | I39: 19761.90476 | J39: -870.628901 | K39: -2922 | L39: 0 | AB39: Marginal Costs of Production > | AC39: 1 | AD39: 0 | AE39: =AE32/AE18 -> 2.249571092 | AF39: 104.820054 | AH39: 0 | AL39: 0
F40: I | H40: I | I40: -12214.93985 | J40: 384.7266295 | K40: 649.3658223 | L40: I | Q40: =-Q75 -> 0 | R40: Yt | S40: =-S75 -> -59285.71429 | T40: =W19 -> 870.628901 | U40: =AG6 -> 8766 | W40: < Output | AB40: Values of > | AC40: =AC33/AC19 -> 1 | AD40: I | AE40: 2.249571092 | AF40: 104.820054 | AG40: =AG33/AG19 -> 21.61496607 | AH40: I | AI40: =AF47 -> 104.820054 | AK40: =(AI40*AI7*AI54)^W7 -> 632327.3064 | AL40: I
F41: L | G41: -21236.43504 | H41: L | I41: -7546.964915 | J41: 485.9022715 | K41: 2272.634178 | L41: L | S41: 0 | T41: I | U41: L | AB41: Marginal Product | AD41: L | AE41: 2.249571092 | AF41: 104.820054 | AG41: =AG34/AG20 -> 21.61496607 | AH41: L | AI41: =-AG47 -> -21.61496607 | AK41: =(AI41*AI8*AI55)^W8 -> 77831.88197 | AL41: L
Q43: =Q40+Q13-Q73 -> 0 | R43: S | S43: =-Init!E10 -> -59285.71429 | T43: =T40+T13-T73 -> 870.628901 | U43: =U40+W20+U13-U73 -> 1948.097467 | W43: < Supply
G44: =3*G37/Term -> 0 | K44: -10418.73548 | S44: 0 | T44: I | U44: L
G46: =3*G39/Term -> 0 | H46: 0 | Q46: =1/AE46 -> 0.5 | S46: =AE46/$AE46 -> 1 | T46: =AF46/$AE46 -> 49.10714286 | U46: =AG46/$AE46 -> 10 | AC46: =1 -> 1 | AE46: =Init!E15 -> 2 | AF46: =Init!F15 -> 98.21428571 | AG46: =Init!G15 -> 20
E47: Maturing | H47: I | P47: Currency > | Q47: =Q30/AC30 -> 0.4445291832 | R47: Y | S47: =S37/(AE13+S43) -> 1 | T47: =T37/(AF13+T43) -> 46.59557296 | U47: =U37/(AG13+U43) -> 9.60848321 | W47: < Values | AB47: Prices > | AC47: =P0*Q47 -> 1 | AD47: P | AE47: =AE30/(S51+S16) -> 2.249571092 | AF47: =P0*T47 -> 104.820054 | AG47: =P0*U47 -> 21.61496607
E48: Principal > | G48: =3*G41/Term -> -10998.20887 | H48: L | O48: Value | Q48: G/$ | S48: 0 | T48: I | U48: L | W48: G/unit | AA48: $/unit | AB48: of Money | AC48: $/$ | AE48: 0 | AF48: I | AG48: L
Q51: =Q53-S51 -> -843263.8231 | S51: =-SUM(T51:U51) -> 843263.8231 | T51: =T$47*AF4 -> -596774.425 | U51: =U$47*AG4 -> -246489.3981 | AC51: =AC53-AE51 -> -1896981.919 | AE51: =-SUM(AF51:AG51) -> 1896981.919 | AF51: =AF$47*AF4 -> -1342486.495 | AG51: =AG$47*AG4 -> -554495.4244
Q52: ¡ | R52: YU | S52: 0 | T52: I | U52: L | AC52: u | AD52: PU | AE52: 0 | AF52: I | AG52: L | AI52: PU
E53: - i | G53: Domestic | Q53: =S53-S53 -> 0 | R53: 0 | S53: =-S51-SUM(S54:S55) -> -305775.1124 | T53: =T$47*AF6 -> 321655.3935 | U53: 84227.96382 | V53: 0 | W53: Interaction | AB53: Interaction | AC53: =AE53-AE53 -> 0 | AD53: 0 | AE53: =-AE51-SUM(AE54:AE55) -> -687862.8535 | AF53: =AF$47*AF6 -> 723586.6748 | AG53: 189476.7925 | AH53: 0
E54: =-T47*(T40+T13)/I19-V0 -> 0.107044679 | F54: < | G54: Interest | Q54: =T53-S54 -> 847186.456 | R54: I | S54: =-SUM(T54:U54) -> -525531.0625 | T54: 263161.3833 | U54: 262369.6792 | V54: I | W54: < of Utility | AB54: of Utility > | AC54: =AF53-AE54 -> 1905806.161 | AD54: I | AE54: =-SUM(AF54:AG54) -> -1182219.486 | AF54: 592000.2404 | AG54: 590219.2458 | AH54: I | AI54: =AF54*AG54 -> 3.494099354e+11
E55: =Init!C15 -> 0.1 | G55: Rate | Q55: =U53+U55-S55 -> -3922.632943 | R55: L | S55: =-T55 -> -11957.64817 | T55: 11957.64817 | U55: -100108.2449 | V55: L | W55: with Values | AB55: with Prices | AC55: =AG53+AG55-AE55 -> -8824.241673 | AD55: L | AE55: =-AF55 -> -26899.57966 | AF55: 26899.57966 | AG55: -225200.6139 | AH55: L | AI55: =AF55 -> 26899.57966
AE57: - PU
I58: NPV | J58: 1
E59: Investment | G59: =LN(1-Iota)*(1-Iota)^Term+Iota*Kappa/Gamma -> 0.3217945157 | I59: =1/(1+Iota*Kappa/(Gamma/Term)) -> 0.5548359848 | J59: 1+iTk/g | Q59: =AC59/AC$47-AC51 -> 3.492459655e-09 | S59: =AE59/AE$47-S51 -> 0 | T59: =AF59/AF$47-AF4 -> 0 | U59: =AG59/AG$47-AG4 -> 0 | AC59: =AC61-AE59 -> -1896981.919 | AE59: =-SUM(AF59:AG59) -> 1896981.919 | AF59: =-SUM(AF61:AF63) -> -1342486.495 | AG59: =-SUM(AG61:AG63) -> -554495.4244
E60: Term | I60: =Init!K19 -> 0.5131581182 | Q60: -f | R60: Q | S60: 0 | T60: I | U60: L | AC60: hz | AD60: Hz | AE60: 0 | AF60: I | AG60: L
E61: Calculation | G61: =Term-(1/I61-1/NPV)/G59 -> 5.792698239 | I61: =(1-Iota/V0)^(-Term*V0) -> 0.5548359848 | J61: 1 | Q61: =AC61/AC$47-AC53 -> 0 | R61: 0 | S61: =AE61/AE$47-S53 -> 59285.71429 | T61: =AF61/AF$47-AF6 -> -870.628901 | U61: -8766 | V61: 0 | W61: Optimal | AC61: =AE61-AE61 -> 0 | AD61: 0 | AE61: =-AE59-SUM(AE62:AE63) -> -554495.4244 | AF61: =T6*$AI26 -> 632327.3064 | AG61: =U6*$AI27 -> 0 | AH61: 0
I62: NPV | J62: (1 - i)T | Q62: =AC62/AC$47-AC54 -> -8824.241673 | R62: I | S62: =AE62/AE$47-S54 -> -36644.81954 | T62: 384.7266295 | U62: 1948.097467 | V62: I | W62: < Rates of | AC62: =Q7*$AI26 -> 1896981.919 | AD62: I | AE62: =S7*$AI26 -> -1264654.613 | AF62: 632327.3064 | AG62: 632327.3064 | AH62: I
Q63: =AC63/AC$47-AC55 -> 8824.241673 | R63: L | S63: =AE63/AE$47-S55 -> -22640.89475 | T63: 485.9022715 | U63: =AG63/AG$47-AG8 -> 6817.902533 | V63: L | W63: Change | AC63: =Q8*$AI27 -> 0 | AD63: L | AE63: -77831.88197 | AF63: 77831.88197 | AG63: -77831.88197 | AH63: L
E66: Domestic | G66: T | Q66: =SUM(Q62:Q63) -> -3.456079867e-09 | R66: D | S66: =SUM(S62:S63) -> -59285.71429 | T66: =SUM(T62:T63) -> 870.628901 | U66: =U62 -> 1948.097467 | W66: < Demand
E67: Investment | F67: > | G67: 5.792698239 | S67: 0 | T67: I | U67: L
E68: Term | G68: =Init!C19 -> 7
Q69: 1 | R69: F | S69: =S0/S66 -> 1 | T69: =IF(T66>T43,T43/T66,1) -> 1 | U69: =IF(U66>U43,U43/U66,1) -> 1 | W69: < Demand Factors
S70: 0 | T70: I | U70: L
W72: imports ( - )
E73: 0 | G73: 0 | I73: =I23+DT*(S73-V0*I23*3) -> 0 | J73: =J23+DT*(T73-J$8*J23*3) -> 0 | K73: =K23+DT*(U73-K$8*K23*3) -> 0 | Q73: =S73-Q75 -> 0 | S73: =-Q75 -> 0 | T73: 0 | U73: 0 | W73: < eXports ( + ) | AE73: =-SUM(AF73:AG73) -> 0 | AF73: =AF$47*T73 -> 0 | AG73: =AG$47*U73 -> 0
H74: A | I74: 0 | J74: I | K74: L | Q74: r | R74: R | S74: 0 | T74: I | U74: L | AD74: PR | AE74: 0 | AF74: I | AG74: L
D75: 0 | F75: 0 | H75: 0 | I75: =I25+DT*(S75-V0*I25*3) -> 19761.90476 | J75: =J25+DT*(T75-J$8*J25*3) -> -870.628901 | K75: -2922 | L75: 0 | Q75: =AE75-AE75 -> 0 | R75: 0 | S75: =-S73-SUM(S76:S77) -> 59285.71429 | T75: =-T40 -> -870.628901 | U75: =-U40 -> -8766 | V75: 0 | W75: < Output (-) | AD75: 0 | AE75: =-SUM(AF75:AG75) -> 133367.429 | AF75: =-AF73-SUM(AF76:AF77) -> -91259.36838 | AG75: =-AG73-SUM(AG76:AG77) -> -42108.06064 | AH75: 0
D76: I | E76: =KI+DT*(Q76-Q19) -> 82435.12671 | F76: I | H76: I | I76: =I26+DT*(S76-V0*I26*3) -> -12214.93985 | J76: 384.7266295 | K76: 649.3658223 | L76: I | P76: Cost of Sales | Q76: =AF75-AE76 -> -8824.241673 | R76: I | S76: =S$69*S62 -> -36644.81954 | T76: =T$69*T62 -> 384.7266295 | U76: =U$69*U62 -> 1948.097467 | V76: I | W76: < Rates of | AD76: I | AE76: =-SUM(AF76:AG76) -> -82435.12671 | AF76: =AF$47*T76 -> 40327.06607 | AG76: =AG$47*U76 -> 42108.06064 | AH76: I | AI76: Monetary
D77: L | F77: L | G77: =G27+DT*(G48-3*G27/Term+Q77-Q20) -> -21236.43504 | H77: L | I77: =I27+DT*(S77-V0*I27*3) -> -7546.964915 | J77: 485.9022715 | K77: 2272.634178 | L77: L | P77: Minus Sales > | Q77: =AG75-AE77 -> 8824.241673 | R77: L | S77: =S$69*S63 -> -22640.89475 | T77: =T$69*T63 -> 485.9022715 | U77: =-U73-SUM(U75:U76) -> 6817.902533 | V77: L | W77: Change | AD77: L | AE77: =-SUM(AF77:AG77) -> -50932.30232 | AF77: =AF$47*T77 -> 50932.30232 | AG77: =0 -> 0 | AH77: L | AI77: < Transactions
AE78: s
I80: =I30+DT*V0*3*(I23-I30) -> 0 | J80: =J30+DT*J$8*3*(J23-J30) -> 0 | K80: =K30+DT*K$8*3*(K23-K30) -> 0 | Q80: =Init!C25 -> 0 | S80: =Init!E8 -> 0 | T80: =Init!F8 -> 0 | U80: =Init!G8 -> 0
H81: B | I81: 0 | J81: I | K81: L | Q81: r | R81: R | S81: 0 | T81: I | U81: L
F82: 0 | H82: 0 | I82: =I32+DT*V0*3*(I25-I32) -> 19761.90476 | J82: =J32+DT*J$8*3*(J25-J32) -> -870.628901 | K82: -2922 | L82: 0 | Q82: =Init!C27 -> 0 | R82: 0 | S82: =Init!E10 -> 59285.71429 | T82: =Init!F10 -> -800 | U82: =Init!G10 -> -8766 | V82: 0
D83: System State | F83: I | H83: I | I83: =I33+DT*V0*3*(I26-I33) -> -12214.93985 | J83: 384.7266295 | K83: 649.3658223 | L83: I | Q83: =Init!C28 -> -7142.857143 | R83: I | S83: =Init!E11 -> -35714.28571 | T83: =Init!F11 -> 320 | U83: =Init!G11 -> 2000 | V83: I
D84: at time = t + D > | F84: L | G84: =G34+DT*3*(G27-G34)/Term -> -21236.43504 | H84: L | I84: =I34+DT*V0*3*(I27-I34) -> -7546.964915 | J84: 485.9022715 | K84: 2272.634178 | L84: L | Q84: =Init!C29 -> 7142.857143 | R84: L | S84: =Init!E12 -> -23571.42857 | T84: =Init!F12 -> 480 | U84: =Init!G12 -> 6766 | V84: L
I87: =I37+DT*V0*3*(I30-I37) -> 0 | J87: =J37+DT*J$8*3*(J30-J37) -> 0 | K87: =K37+DT*K$8*3*(K30-K37) -> 0 | Q87: u
H88: C | I88: 0 | J88: I | K88: L | Q88: (h/w-1)
F89: 0 | H89: 0 | I89: =I39+DT*V0*3*(I32-I39) -> 19761.90476 | J89: =J39+DT*J$8*3*(J32-J39) -> -870.628901 | K89: -2922 | L89: 0 | Q89: =-SUM(Q90:Q91) -> 1.200533006e-09 | R89: 0
F90: I | H90: I | I90: =I40+DT*V0*3*(I33-I40) -> -12214.93985 | J90: 384.7266295 | K90: 649.3658223 | L90: I | Q90: =AC54/(Q7/Q26-1) -> -8824.241673 | R90: I
F91: L | G91: =G41+DT*3*(G34-G41)/Term -> -21236.43504 | H91: L | I91: =I41+DT*V0*3*(I34-I41) -> -7546.964915 | J91: 485.9022715 | K91: 2272.634178 | L91: L | Q91: =AC55/(Q8/Q27-1) -> 8824.241673 | R91: L
K94: =K44+DT*Q94 -> -10418.73548 | Q94: =(Q91-Q20)/AG47/(1-W27)*K8 -> -8.526157737e-11
K95: =Init!G36 -> -10383.36116

Sheet Series
B4: BUFFER ->
C5: =TicToc -> 300.0014954 | D5: ='1 DT'!W19 -> 870.628901 | E5: ='1 DT'!T43 -> 870.628901 | F5: ='1 DT'!T66 -> 870.628901 | G5: =-Iota -> 0.107044679 | H5: ='1 DT'!Q47 -> 0.4445291832 | I5: ='1 DT'!AF47 -> 104.820054 | J5: ='1 DT'!AF39 -> 104.820054 | K5: ='1 DT'!AF40 -> 104.820054 | L5: ='1 DT'!AF41 -> 104.820054 | M5: =Init!F15 -> 98.21428571 | N5: ='1 DT'!AG47 -> 21.61496607 | O5: ='1 DT'!AG41 -> 21.61496607 | P5: ='1 DT'!AG40 -> 21.61496607 | Q5: =Init!G15 -> 20 | R5: =-Init!G36 -> 10383.36116 | S5: =-Zl -> 10418.73548 | T5: =Init!G12 -> 6766 | U5: ='1 DT'!U20 -> 6817.902533
A7: BOX: | C7: year | D7: Y1 | E7: S1 | F7: D1 | G7: - i | H7: G/$ | I7: P1 | J7: MC1 | K7: VMP1 | L7: VMPL | M7: P* | N7: Wage | O7: MCL | P7: VMP1 | Q7: W* | R7: -z | S7: -Z | T7: -y | U7: -Y
A8: 0 | C8: 0 | D8: 816 | E8: 816 | F8: 921.1134829 | G8: 0.1193287315 | H8: 0.4190105715 | I8: 116.2380073 | J8: 114.8998641 | K8: 117.1978613 | L8: 117.1978613 | M8: 98.21428571 | N8: 23.72677405 | O8: 23.86574631 | P8: 23.86574631 | Q8: 20 | R8: 10383.36116 | S8: 10383.36116 | T8: 6766 | U8: 6766
A9: =1+A8 -> 1 | C9: 10.00013351 | D9: 870.5498695 | E9: 870.5498695 | F9: 870.8733397 | G9: 0.107049583 | H9: 0.4446863643 | I9: 104.7999056 | J9: 104.7975755 | K9: 104.805737 | L9: 105.0118499 | M9: 98.21428571 | N9: 21.61009438 | O9: 21.64333326 | P9: 21.60949723 | Q9: 20 | R9: 10383.36116 | S9: 10418.68605 | T9: 6766 | U9: 6816.39083
A10: 2 | C10: 20.0003624 | D10: 870.6285759 | E10: 870.6285759 | F10: 870.6298041 | G10: 0.107044687 | H10: 0.4445297895 | I10: 104.8199798 | J10: 104.8199711 | K10: 104.8200012 | L10: 104.8207172 | M10: 98.21428571 | N10: 21.61494846 | O10: 21.61506409 | P10: 21.61494628 | Q10: 20 | R10: 10383.36116 | S10: 10418.73525 | T10: 6766 | U10: 6817.89729
A11: 3 | C11: 30.00059128 | D11: 870.6288999 | E11: 870.6288999 | F11: 870.6289043 | G11: 0.107044679 | H11: 0.4445291853 | I11: 104.8200537 | J11: 104.8200537 | K11: 104.8200538 | L11: 104.8200563 | M11: 98.21428571 | N11: 21.614966 | O11: 21.61496642 | P11: 21.614966 | Q11: 20 | R11: 10383.36116 | S11: 10418.73548 | T11: 6766 | U11: 6817.902514
A12: 4 | C12: 39.99929428 | D12: 870.628901 | E12: 870.628901 | F12: 870.628901 | G12: 0.107044679 | H12: 0.4445291832 | I12: 104.820054 | J12: 104.820054 | K12: 104.820054 | L12: 104.820054 | M12: 98.21428571 | N12: 21.61496607 | O12: 21.61496607 | P12: 21.61496607 | Q12: 20 | R12: 10383.36116 | S12: 10418.73548 | T12: 6766 | U12: 6817.902533 | Z12: b1 | AA12: Z1 | AB12: b1-2 | AC12: U1-2
A13: 5 | C13: 49.99761581 | D13: 870.628901 | E13: 870.628901 | F13: 870.628901 | G13: 0.107044679 | H13: 0.4445291832 | I13: 104.820054 | J13: 104.820054 | K13: 104.820054 | L13: 104.820054 | M13: 98.21428571 | N13: 21.61496607 | O13: 21.61496607 | P13: 21.61496607 | Q13: 20 | R13: 10383.36116 | S13: 10418.73548 | T13: 6766 | U13: 6817.902533 | Z13: ='1 DT'!AC26 -> 632327.3064 | AA13: ='1 DT'!AF6 -> 6903.132058 | AB13: ='1 DT'!AC26+'1 DT'!AC27 -> 710159.1884 | AC13: ='1 DT'!AF7+'1 DT'!AF8 -> 5904.402799
A14: 6 | C14: 59.99593735 | D14: 870.628901 | E14: 870.628901 | F14: 870.628901 | G14: 0.107044679 | H14: 0.4445291832 | I14: 104.820054 | J14: 104.820054 | K14: 104.820054 | L14: 104.820054 | M14: 98.21428571 | N14: 21.61496607 | O14: 21.61496607 | P14: 21.61496607 | Q14: 20 | R14: 10383.36116 | S14: 10418.73548 | T14: 6766 | U14: 6817.902533 | Z14: INITIAL | AA14: INITIAL
A15: 7 | C15: 69.99654388 | D15: 870.628901 | E15: 870.628901 | F15: 870.628901 | G15: 0.107044679 | H15: 0.4445291832 | I15: 104.820054 | J15: 104.820054 | K15: 104.820054 | L15: 104.820054 | M15: 98.21428571 | N15: 21.61496607 | O15: 21.61496607 | P15: 21.61496607 | Q15: 20 | R15: 10383.36116 | S15: 10418.73548 | T15: 6766 | U15: 6817.902533 | Y15: Q1 | Z15: s | AA15: d | AB15: S | AC15: D
A16: 8 | C16: 79.99868011 | D16: 870.628901 | E16: 870.628901 | F16: 870.628901 | G16: 0.107044679 | H16: 0.4445291832 | I16: 104.820054 | J16: 104.820054 | K16: 104.820054 | L16: 104.820054 | M16: 98.21428571 | N16: 21.61496607 | O16: 21.61496607 | P16: 21.61496607 | Q16: 20 | R16: 10383.36116 | S16: 10418.73548 | T16: 6766 | U16: 6817.902533 | Y16: 750 | Z16: 97.39825104 | AA16: 98.9522504 | AB16: =$Z$13/($AA$13-Y16) -> 102.7651122 | AC16: =$AB$13/($AC$13+Y16) -> 106.7201986
A17: 9 | C17: 90.00081635 | D17: 870.628901 | E17: 870.628901 | F17: 870.628901 | G17: 0.107044679 | H17: 0.4445291832 | I17: 104.820054 | J17: 104.820054 | K17: 104.820054 | L17: 104.820054 | M17: 98.21428571 | N17: 21.61496607 | O17: 21.61496607 | P17: 21.61496607 | Q17: 20 | R17: 10383.36116 | S17: 10418.73548 | T17: 6766 | U17: 6817.902533 | Y17: =10+Y16 -> 760 | Z17: 97.56037134 | AA17: 98.80377161 | AB17: 102.9323968 | AC17: 106.5600639
A18: 10 | C18: 100.0029526 | D18: 870.628901 | E18: 870.628901 | F18: 870.628901 | G18: 0.107044679 | H18: 0.4445291832 | I18: 104.820054 | J18: 104.820054 | K18: 104.820054 | L18: 104.820054 | M18: 98.21428571 | N18: 21.61496607 | O18: 21.61496607 | P18: 21.61496607 | Q18: 20 | R18: 10383.36116 | S18: 10418.73548 | T18: 6766 | U18: 6817.902533 | Y18: =10+Y17 -> 770 | Z18: 97.72303224 | AA18: 98.65573773 | AB18: 103.1002268 | AC18: 106.4004091
A19: 11 | C19: 110.0050888 | D19: 870.628901 | E19: 870.628901 | F19: 870.628901 | G19: 0.107044679 | H19: 0.4445291832 | I19: 104.820054 | J19: 104.820054 | K19: 104.820054 | L19: 104.820054 | M19: 98.21428571 | N19: 21.61496607 | O19: 21.61496607 | P19: 21.61496607 | Q19: 20 | R19: 10383.36116 | S19: 10418.73548 | T19: 6766 | U19: 6817.902533 | Y19: 780 | Z19: 97.88623645 | AA19: 98.50814678 | AB19: 103.2686051 | AC19: 106.241232
A20: 12 | C20: 120.007225 | D20: 870.628901 | E20: 870.628901 | F20: 870.628901 | G20: 0.107044679 | H20: 0.4445291832 | I20: 104.820054 | J20: 104.820054 | K20: 104.820054 | L20: 104.820054 | M20: 98.21428571 | N20: 21.61496607 | O20: 21.61496607 | P20: 21.61496607 | Q20: 20 | R20: 10383.36116 | S20: 10418.73548 | T20: 6766 | U20: 6817.902533 | Y20: 790 | Z20: 98.04998669 | AA20: 98.36099676 | AB20: 103.4375342 | AC20: 106.0825304
A21: 13 | C21: 130.0078278 | D21: 870.628901 | E21: 870.628901 | F21: 870.628901 | G21: 0.107044679 | H21: 0.4445291832 | I21: 104.820054 | J21: 104.820054 | K21: 104.820054 | L21: 104.820054 | M21: 98.21428571 | N21: 21.61496607 | O21: 21.61496607 | P21: 21.61496607 | Q21: 20 | R21: 10383.36116 | S21: 10418.73548 | T21: 6766 | U21: 6817.902533 | Y21: 800 | Z21: 98.21428571 | AA21: 98.21428571 | AB21: 103.6070169 | AC21: 105.9243022
A22: 14 | C22: 140.0023346 | D22: 870.628901 | E22: 870.628901 | F22: 870.628901 | G22: 0.107044679 | H22: 0.4445291832 | I22: 104.820054 | J22: 104.820054 | K22: 104.820054 | L22: 104.820054 | M22: 98.21428571 | N22: 21.61496607 | O22: 21.61496607 | P22: 21.61496607 | Q22: 20 | R22: 10383.36116 | S22: 10418.73548 | T22: 6766 | U22: 6817.902533 | Y22: 810 | Z22: 98.37913628 | AA22: 98.06801167 | AB22: 103.7770559 | AC22: 105.7665454
A23: 15 | C23: 149.9968414 | D23: 870.628901 | E23: 870.628901 | F23: 870.628901 | G23: 0.107044679 | H23: 0.4445291832 | I23: 104.820054 | J23: 104.820054 | K23: 104.820054 | L23: 104.820054 | M23: 98.21428571 | N23: 21.61496607 | O23: 21.61496607 | P23: 21.61496607 | Q23: 20 | R23: 10383.36116 | S23: 10418.73548 | T23: 6766 | U23: 6817.902533 | Y23: 820 | Z23: 98.54454118 | AA23: 97.92217268 | AB23: 103.947654 | AC23: 105.6092577
A24: 16 | C24: 159.9913483 | D24: 870.628901 | E24: 870.628901 | F24: 870.628901 | G24: 0.107044679 | H24: 0.4445291832 | I24: 104.820054 | J24: 104.820054 | K24: 104.820054 | L24: 104.820054 | M24: 98.21428571 | N24: 21.61496607 | O24: 21.61496607 | P24: 21.61496607 | Q24: 20 | R24: 10383.36116 | S24: 10418.73548 | T24: 6766 | U24: 6817.902533 | Y24: 830 | Z24: 98.71050321 | AA24: 97.7767668 | AB24: 104.1188139 | AC24: 105.4524372
A25: 17 | C25: 169.9858551 | D25: 870.628901 | E25: 870.628901 | F25: 870.628901 | G25: 0.107044679 | H25: 0.4445291832 | I25: 104.820054 | J25: 104.820054 | K25: 104.820054 | L25: 104.820054 | M25: 98.21428571 | N25: 21.61496607 | O25: 21.61496607 | P25: 21.61496607 | Q25: 20 | R25: 10383.36116 | S25: 10418.73548 | T25: 6766 | U25: 6817.902533 | Y25: 840 | Z25: 98.87702518 | AA25: 97.63179212 | AB25: 104.2905383 | AC25: 105.2960817
A26: 18 | C26: 179.9803619 | D26: 870.628901 | E26: 870.628901 | F26: 870.628901 | G26: 0.107044679 | H26: 0.4445291832 | I26: 104.820054 | J26: 104.820054 | K26: 104.820054 | L26: 104.820054 | M26: 98.21428571 | N26: 21.61496607 | O26: 21.61496607 | P26: 21.61496607 | Q26: 20 | R26: 10383.36116 | S26: 10418.73548 | T26: 6766 | U26: 6817.902533 | Y26: 850 | Z26: 99.04410993 | AA26: 97.48724671 | AB26: 104.4628302 | AC26: 105.1401892
A27: 19 | C27: 189.9748688 | D27: 870.628901 | E27: 870.628901 | F27: 870.628901 | G27: 0.107044679 | H27: 0.4445291832 | I27: 104.820054 | J27: 104.820054 | K27: 104.820054 | L27: 104.820054 | M27: 98.21428571 | N27: 21.61496607 | O27: 21.61496607 | P27: 21.61496607 | Q27: 20 | R27: 10383.36116 | S27: 10418.73548 | T27: 6766 | U27: 6817.902533 | Y27: 860 | Z27: 99.21176033 | AA27: 97.34312867 | AB27: 104.6356923 | AC27: 104.9847576
A28: 20 | C28: 199.9693756 | D28: 870.628901 | E28: 870.628901 | F28: 870.628901 | G28: 0.107044679 | H28: 0.4445291832 | I28: 104.820054 | J28: 104.820054 | K28: 104.820054 | L28: 104.820054 | M28: 98.21428571 | N28: 21.61496607 | O28: 21.61496607 | P28: 21.61496607 | Q28: 20 | R28: 10383.36116 | S28: 10418.73548 | T28: 6766 | U28: 6817.902533 | Y28: 870 | Z28: 99.37997925 | AA28: 97.19943611 | AB28: 104.8091274 | AC28: 104.8297849
A29: 21 | C29: 209.9638824 | D29: 870.628901 | E29: 870.628901 | F29: 870.628901 | G29: 0.107044679 | H29: 0.4445291832 | I29: 104.820054 | J29: 104.820054 | K29: 104.820054 | L29: 104.820054 | M29: 98.21428571 | N29: 21.61496607 | O29: 21.61496607 | P29: 21.61496607 | Q29: 20 | R29: 10383.36116 | S29: 10418.73548 | T29: 6766 | U29: 6817.902533 | Y29: 880 | Z29: 99.54876959 | AA29: 97.05616715 | AB29: 104.9831384 | AC29: 104.6752691
A30: 22 | C30: 219.9583893 | D30: 870.628901 | E30: 870.628901 | F30: 870.628901 | G30: 0.107044679 | H30: 0.4445291832 | I30: 104.820054 | J30: 104.820054 | K30: 104.820054 | L30: 104.820054 | M30: 98.21428571 | N30: 21.61496607 | O30: 21.61496607 | P30: 21.61496607 | Q30: 20 | R30: 10383.36116 | S30: 10418.73548 | T30: 6766 | U30: 6817.902533 | Y30: 890 | Z30: 99.71813427 | AA30: 96.91331991 | AB30: 105.1577282 | AC30: 104.521208
A31: 23 | C31: 229.9528961 | D31: 870.628901 | E31: 870.628901 | F31: 870.628901 | G31: 0.107044679 | H31: 0.4445291832 | I31: 104.820054 | J31: 104.820054 | K31: 104.820054 | L31: 104.820054 | M31: 98.21428571 | N31: 21.61496607 | O31: 21.61496607 | P31: 21.61496607 | Q31: 20 | R31: 10383.36116 | S31: 10418.73548 | T31: 6766 | U31: 6817.902533 | Y31: 900 | Z31: 99.88807621 | AA31: 96.77089254 | AB31: 105.3328996 | AC31: 104.3675998
A32: 24 | C32: 239.947403 | D32: 870.628901 | E32: 870.628901 | F32: 870.628901 | G32: 0.107044679 | H32: 0.4445291832 | I32: 104.820054 | J32: 104.820054 | K32: 104.820054 | L32: 104.820054 | M32: 98.21428571 | N32: 21.61496607 | O32: 21.61496607 | P32: 21.61496607 | Q32: 20 | R32: 10383.36116 | S32: 10418.73548 | T32: 6766 | U32: 6817.902533 | Y32: 910 | Z32: 100.0585984 | AA32: 96.62888319 | AB32: 105.5086556 | AC32: 104.2144425
A33: 25 | C33: 249.9419098 | D33: 870.628901 | E33: 870.628901 | F33: 870.628901 | G33: 0.107044679 | H33: 0.4445291832 | I33: 104.820054 | J33: 104.820054 | K33: 104.820054 | L33: 104.820054 | M33: 98.21428571 | N33: 21.61496607 | O33: 21.61496607 | P33: 21.61496607 | Q33: 20 | R33: 10383.36116 | S33: 10418.73548 | T33: 6766 | U33: 6817.902533 | Y33: 920 | Z33: 100.2297038 | AA33: 96.48729001 | AB33: 105.6849991 | AC33: 104.0617339
A34: 26 | C34: 259.9424133 | D34: 870.628901 | E34: 870.628901 | F34: 870.628901 | G34: 0.107044679 | H34: 0.4445291832 | I34: 104.820054 | J34: 104.820054 | K34: 104.820054 | L34: 104.820054 | M34: 98.21428571 | N34: 21.61496607 | O34: 21.61496607 | P34: 21.61496607 | Q34: 20 | R34: 10383.36116 | S34: 10418.73548 | T34: 6766 | U34: 6817.902533 | Y34: 930 | Z34: 100.4013953 | AA34: 96.3461112 | AB34: 105.8619331 | AC34: 103.9094723
A35: 27 | C35: 269.952179 | D35: 870.628901 | E35: 870.628901 | F35: 870.628901 | G35: 0.107044679 | H35: 0.4445291832 | I35: 104.820054 | J35: 104.820054 | K35: 104.820054 | L35: 104.820054 | M35: 98.21428571 | N35: 21.61496607 | O35: 21.61496607 | P35: 21.61496607 | Q35: 20 | R35: 10383.36116 | S35: 10418.73548 | T35: 6766 | U35: 6817.902533 | Y35: 940 | Z35: 100.5736761 | AA35: 96.20534492 | AB35: 106.0394605 | AC35: 103.7576556
A36: 28 | C36: 279.9619446 | D36: 870.628901 | E36: 870.628901 | F36: 870.628901 | G36: 0.107044679 | H36: 0.4445291832 | I36: 104.820054 | J36: 104.820054 | K36: 104.820054 | L36: 104.820054 | M36: 98.21428571 | N36: 21.61496607 | O36: 21.61496607 | P36: 21.61496607 | Q36: 20 | R36: 10383.36116 | S36: 10418.73548 | T36: 6766 | U36: 6817.902533 | Y36: 950 | Z36: 100.7465492 | AA36: 96.06498937 | AB36: 106.2175843 | AC36: 103.6062819
A37: 29 | C37: 289.9717102 | D37: 870.628901 | E37: 870.628901 | F37: 870.628901 | G37: 0.107044679 | H37: 0.4445291832 | I37: 104.820054 | J37: 104.820054 | K37: 104.820054 | L37: 104.820054 | M37: 98.21428571 | N37: 21.61496607 | O37: 21.61496607 | P37: 21.61496607 | Q37: 20 | R37: 10383.36116 | S37: 10418.73548 | T37: 6766 | U37: 6817.902533
A38: 30 | C38: 299.9814758 | D38: 870.628901 | E38: 870.628901 | F38: 870.628901 | G38: 0.107044679 | H38: 0.4445291832 | I38: 104.820054 | J38: 104.820054 | K38: 104.820054 | L38: 104.820054 | M38: 98.21428571 | N38: 21.61496607 | O38: 21.61496607 | P38: 21.61496607 | Q38: 20 | R38: 10383.36116 | S38: 10418.73548 | T38: 6766 | U38: 6817.902533
C39: 300.0014954 | D39: 870.628901 | E39: 870.628901 | F39: 870.628901 | G39: 0.107044679 | H39: 0.4445291832 | I39: 104.820054 | J39: 104.820054 | K39: 104.820054 | L39: 104.820054 | M39: 98.21428571 | N39: 21.61496607 | O39: 21.61496607 | P39: 21.61496607 | Q39: 20 | R39: 10383.36116 | S39: 10418.73548 | T39: 6766 | U39: 6817.902533

Sheet Init
E8: =E25/E$15 -> 0 | F8: 0 | G8: 0
D9: R | E9: 0 | F9: I | G9: L | K9: Experimenters are invited to change
D10: 0 | E10: =-E8-E11-E12 -> 59285.71429 | F10: =-F8-F11-F12 -> -800 | G10: =-G8-G11-G12 -> -8766 | H10: 0 | K10: any data set in red type that
D11: I | E11: =E28/E$15 -> -35714.28571 | F11: 320 | G11: 2000 | H11: I | K11: appears within this marquee.
D12: L | E12: =E29/E$15 -> -23571.42857 | F12: 480 | G12: =6766 -> 6766 | H12: L
E13: 0 | F13: I | G13: L
C15: 0.1 | D15: P | E15: 2 | F15: =-(1-M19)*K15/F10 -> 98.21428571 | G15: 20 | K15: =(G15*G11)/(1+(1-M19)*F11/F10) -> 71428.57143
C16: Interest Rate | G16: Wage
C18: Investment Term | E18: 0 | F18: I | G18: L | K18: NPV | M18: i | O18: n
B19: yrs. | C19: 7 | D19: V | E19: 1 | F19: =1/3 -> 0.3333333333 | G19: =1 -> 1 | K19: =(1-M19)^-C19 -> 0.5131581182 | M19: =-C15 -> -0.1 | O19: =(1-1/K19)/C19 -> -0.1355310143
C20: T
C25: =C27-E25 -> 0 | E25: =-SUM(F25:G25) -> 0 | F25: =F$15*F8 -> 0 | G25: =G$15*G8 -> 0 | M25: 0 | O25: 0 | Q25: =E8/E$19/3 -> 0 | R25: =F8/F$19/3 -> 0 | S25: =G8/G$19/3 -> 0
C26: r | D26: PR | E26: 0 | F26: I | G26: L | P26: A | Q26: 0 | R26: I | S26: L
C27: =E27-E27 -> 0 | D27: 0 | E27: =-SUM(F27:G27) -> 118571.4286 | F27: =-F25-SUM(F28:F29) -> -78571.42857 | G27: =-G25-SUM(G28:G29) -> -40000 | L27: 0 | M27: 0 | O27: 0 | P27: 0 | Q27: =E10/E$19/3 -> 19761.90476 | R27: -800 | S27: -2922 | T27: 0
C28: =F27-E28 -> -7142.857143 | D28: I | E28: =-SUM(F28:G28) -> -71428.57143 | F28: =F$15*F11 -> 31428.57143 | G28: =G$15*G11 -> 40000 | L28: I | M28: =C28/M$19 -> 71428.57143 | P28: I | Q28: -11904.7619 | R28: 320 | S28: 666.6666667 | T28: I
C29: =G27-E29 -> 7142.857143 | D29: L | E29: =-SUM(F29:G29) -> -47142.85714 | F29: =F$15*F12 -> 47142.85714 | G29: 0 | L29: L | O29: =C29/O$19/3 -> -17567.58328 | P29: L | Q29: -7857.142857 | R29: 480 | S29: 2255.333333 | T29: L
O32: 0 | Q32: =Q25 -> 0 | R32: =R25 -> 0 | S32: =S25 -> 0
C33: z | D33: U | E33: 0 | F33: I | G33: L | P33: B | Q33: 0 | R33: I | S33: L
C34: =0 -> 0 | D34: 0 | E34: =-E10+((G40-G44)-(G52-G56))/E15 -> -316172.5572 | F34: =E44 -> 6767.776528 | G34: =-G10 -> 8766 | O34: 0 | P34: 0 | Q34: =Q27 -> 19761.90476 | R34: =R27 -> -800 | S34: -2922 | T34: 0
C35: =B44 -> 586120.909 | D35: I | F35: =E45 -> 5647.776528 | G35: =E46 -> 27306.04545 | L35: System State | P35: I | Q35: =Q28 -> -11904.7619 | R35: 320 | S35: 666.6666667 | T35: I
C36: =B56 -> 72347.22312 | D36: L | F36: =E57 -> 256.6262718 | G36: =E56 -> -10383.36116 | L36: at time = 0 > | O36: =O29 -> -17567.58328 | P36: L | Q36: =Q29 -> -7857.142857 | R36: 480 | S36: 2255.333333 | T36: L
G39: pq | O39: 0 | Q39: =Q32 -> 0 | R39: =R32 -> 0 | S39: =S32 -> 0
A40: a | B40: =G40-G41-G42 -> 7142.857143 | D40: x > | E40: =-F10 -> 800 | F40: =F15 -> 98.21428571 | G40: =E40*F40 -> 78571.42857 | P40: C | Q40: 0 | R40: I | S40: L
A41: b | B41: =-G40*G41-G40*G42+G41*G42 -> -4355102041 | D41: Q1 > | E41: =F11 -> 320 | F41: =F15 -> 98.21428571 | G41: =E41*F41 -> 31428.57143 | O41: 0 | P41: 0 | Q41: =Q34 -> 19761.90476 | R41: =R34 -> -800 | S41: -2922 | T41: 0
A42: c | B42: =G40*G41*G42 -> 9.87755102e+13 | D42: Q2 > | E42: =G11 -> 2000 | F42: =G15 -> 20 | G42: =E42*F42 -> 40000 | P42: I | Q42: =Q35 -> -11904.7619 | R42: 320 | S42: 666.6666667 | T42: I
F43: ^ P | G43: pu | O43: =O36 -> -17567.58328 | P43: L | Q43: =Q36 -> -7857.142857 | R43: 480 | S43: 2255.333333 | T43: L
A44: z > | B44: =(-B41+SQRT(B41^2-4*B40*B42))/(2*B40) -> 586120.909 | D44: Z < | E44: =G44/F40 -> 6767.776528 | G44: =B44+G40 -> 664692.3375
D45: U1 < | E45: =G45/F41 -> 5647.776528 | G45: =B44-G41 -> 554692.3375
D46: U2 < | E46: =G46/F42 -> 27306.04545 | G46: =B44-G42 -> 546120.909 | S46: =E56/G19 -> -10383.36116
B48: =C48*E48*F48 -> 1 | C48: =1+G40/B44 -> 1.134053277 | E48: =1-G41/B44 -> 0.9463786892 | F48: =1-G42/B44 -> 0.9317546953
G51: pq
D52: x > | E52: =-G12 -> -6766 | F52: =-G15 -> -20 | G52: =E52*F52 -> 135320
D53: Q1 > | E53: =F12 -> 480 | F53: =F15 -> 98.21428571 | G53: =E53*F53 -> 47142.85714
F54: ^ P
G55: pu
A56: z > | B56: =E53*E52/(E52/F53-E53/F52) -> 72347.22312 | D56: Z < | E56: =G56/F52 -> -10383.36116 | G56: =B$56+G52 -> 207667.2231
D57: U1 < | E57: =G57/F53 -> 256.6262718 | G57: =B$56-G53 -> 25204.36598
B60: =C60*E60 -> 1 | C60: =1+G52/B56 -> 2.870424242 | E60: =1-G53/B56 -> 0.3483805583
